Workbook

Sheet Resource Centre Budget
A2: Proposed Budget for Resource Centre (ASHA for Education)
A3: For the period of January 2016 - December 2016
B5: Activities | C5: No. | D5: Month | E5: Rs. | F5: Amount in Rs
A7: SALARIES
B8: Coordinator | C8: 1 | D8: 12 | E8: 20000 | F8: =C8*D8*E8 -> 240000 | G8: =F8/F45*100 -> 27.18973678
A10: PROGRAMME
A11: Children’s Activities | F11: =C11*D11*E11 -> 0
B12: Exposure visits | C12: 5 | D12: 1 | E12: 1500 | F12: 7500
B13: Celebrations (Lumpsum) | C13: 2 | D13: 1 | E13: 6000 | F13: 12000
B14: Participation in competitions (Lumpsum) | C14: 2 | D14: 1 | E14: 1000 | F14: 2000
B15: Art/movement related workshops(resource person/materials/conveyance/refrefreshment) | C15: 2 | D15: 1 | E15: 2500 | F15: 5000
B16: General Assistant | C16: 1 | D16: 12 | E16: 7656 | F16: 91872
A17: Building Multi-Disciplinary Team as a resource
B18: Speech/language Therapist | C18: 1 | D18: 12 | E18: 1500 | F18: 18000
B19: Therapist/Occupational Therapist/Developmental Therapist | C19: 2 | D19: 12 | E19: 1500 | F19: 36000
A20: Materials for resonable accommodation, (Lumpsum) | C20: 1 | D20: 1 | E20: 19514 | F20: 19514
B21: Speical Furniture, Work sheets, materials for communication boards, visual materials, teaching aids, orthotic aids, assessment/learning kit, books, information material etc.) | F21: 0
A22: Nutrition for children(for 40 children) | C22: 1 | D22: 12 | E22: 2000 | F22: 24000
B23: Exp. on fruits, biscuits, eggs, drinks | F23: 0
A24: Work with parents | F24: 0
B25: Home visit for assessments/follow up visit | C25: 4 | D25: 12 | E25: 300 | F25: 14400
B26: Series of Workshop on play therapy/Acceptance of child disability/Importance of Early intervention, information and dissemination (refreshment/materials) | C26: 1 | D26: 6 | E26: =20*50 -> 1000 | F26: 6000
B27: Meeting with Parents (4 nos for 2 centres) | C27: 8 | D27: 1 | E27: 800 | F27: 6400
A28: Work with Schools | F28: 0
B29: Visits | C29: 10 | D29: 1 | E29: 300 | F29: 3000
B30: Spl. Educator ( One) Rs 16,000×12 Part Salary | C30: 1 | D30: 12 | E30: 16000 | F30: 192000
A31: Work with Hospital
B32: Visits | C32: 50 | D32: 1 | E32: 300 | F32: 15000
B33: materials costs (Lumpsum) | C33: 1 | D33: 1 | E33: 5000 | F33: 5000
A34: Capacity Building of staff (in house workshop) (lumpsum) | C34: 1 | D34: 1 | E34: 10000 | F34: 10000
B35: Doing assessment, Developing teaching learning materials, capacity building of staff working with families
A36: Transportation for the children | C36: 1 | D36: 1 | E36: 25000 | F36: =C36*D36*E36 -> 25000
B37: Conveyance expense for bringing children from Lalkuan & Govindpuri to the centre | F37: 0
A38: Workshop on Inclusive Education for pricipals,teachers and special educators(for 30 participants) | C38: 1 | D38: 1 | E38: 25000 | F38: =C38*D38*E38 -> 25000
B39: (Venue, refreshment, materials, Resource person and conveyance)
A40: Workshop for bridging the gap between parents and doctors (for 30 participants) | C40: 1 | D40: 1 | E40: 25000 | F40: =C40*D40*E40 -> 25000
B41: (Venue, refreshment, materials, Resource person and conveyance) | F41: 0
A43: Administration costs | F43: 100000
B44: Including Part time Accountant,Part driver’s salary and expense on water, electricity, staff welfare, repair and maintenance(van and buidling) etc.
B45: Total budget | F45: =SUM(F8:F44) -> 882686
B46: (-) previous balance for the year 2015 | F46: 73286
B47: GRAND TOTAL | F47: =F45-F46 -> 809400
B50: Budget
A51: ASHA FOR EDUCATION - HELPLINE(2016)
B53: Particulars | C53: No. | D53: Month | E53: Rate | F53: Total
A54: I | B54: Programme Costs
A56: A | B56: Helpline Telephones | F56: =F57 -> 24000
A57: A1 | B57: Telephones | C57: 1 | D57: 12 | E57: 2000 | F57: =C57*D57*E57 -> 24000
A59: D | B59: Awareness and Publicity | F59: =SUM(F60:F65) -> 46900
A60: D1 | B60: Hospital visits - conveyance | C60: 1 | D60: 12 | E60: 1000 | F60: =C60*D60*E60 -> 12000
A61: D3 | B61: Printing costs - posters (100-english & 100-Hindi) | C61: 200 | D61: 1 | E61: 15 | F61: =C61*D61*E61 -> 3000
A62: D4 | B62: Printing Costs- fliers (500-English & 500-Hindi) | C62: 1000 | D62: 1 | E62: 9 | F62: =C62*E62 -> 9000
A63: D5 | B63: Printing Costs - brochures (500-English & 500-Hindi) | C63: Lumpsum | D63: 1 | E63: 1 | F63: 7000
A64: D6 | B64: Printing Costs - Visiting Cards(helpline) | C64: Lumpsum | D64: 1 | E64: 1 | F64: =250*6 -> 1500
A65: D7 | B65: Internet costs | C65: 1 | D65: 12 | E65: 1200 | F65: =C65*D65*E65 -> 14400
A66: E | B66: Role out knowledge based Programme | F66: =SUM(F68:F70) -> 10000
B67: Delhi Helplines Network(DHN) Meet
A68: E2 | B68: Delhi Helplines' Network meet-Conveyance | C68: 4 | D68: 1 | E68: 1000 | F68: =C68*D68*E68 -> 4000
A69: E3 | B69: Delhi Helplines' Network meet-Refreshment | C69: 4 | D69: 1 | E69: 1000 | F69: =C69*E69 -> 4000
A70: E4 | B70: Delhi Helplines' Network meet-Material | C70: 4 | D70: 1 | E70: 500 | F70: =C70*E70 -> 2000
A71: F | B71: Information and Dissemination | F71: =SUM(F73:F75) -> 16000
B72: Full Day Workshop in four communities(30 prs)
A73: F1 | B73: Refreshment | C73: 1 | D73: 1 | E73: 10000 | F73: =C73*D73*E73 -> 10000
A74: F2 | B74: Conveyance | C74: 1 | D74: 1 | E74: 2000 | F74: 2000
A75: F3 | B75: Venue | C75: 1 | D75: 1 | E75: 4000 | F75: 4000
A77: G | B77: National Disability Helplines' Network [NDHN] (for 40 participants) | F77: =SUM(F78:F83) -> 185000
A78: G1 | B78: National Level Meeting - Hall rental | C78: 1 | D78: 1 | E78: 12000 | F78: =C78*D78*E78 -> 12000
A79: G2 | B79: National Level Meeting - Food & refreshment | C79: 1 | D79: 40 | E79: 700 | F79: 28000
A80: G3 | B80: National Level Meeting (1)-Material costs | C80: 1 | D80: 1 | E80: 5000 | F80: 5000
A81: G4 | B81: National Level Meeting(1)-Local Travel | C81: 1 | D81: 1 | E81: 5000 | F81: 5000
A82: G5 | B82: National Level MeetingTravel costs for the Participants(outside state) | D82: 10 | E82: 1 | F82: 100000
A83: G6 | B83: Accommodation and Food of participants from outside state | C83: 1 | D83: 10 | E83: 3500 | F83: 35000
A85: H | B85: Compilation of database | F85: 30000
A87: i | B87: SALARY | F87: =SUM(F88:F88) -> 240000
A88: I1 | B88: Helpline Counsellors | C88: 1 | D88: 12 | E88: 20000 | F88: =C88*D88*E88 -> 240000
A90: J | B90: Admin cost-(staff welfare/water/electricity/accountant) | C90: 1 | D90: 12 | E90: 3000 | F90: =C90*D90*E90 -> 36000
B92: Total | F92: =+F87+F85+F77+F66+F59+F56+F71+F90 -> 587900
B95: Grand Total - for both Resource Center and Helpline | F95: =SUM(F92, F47) -> 1397300
